fUSD/lending_fUSD_20240630
["ID","MTS","AMOUNT","RATE_DAILY","PERIOD"]
[330720417,1719735073980,-509.36868542,0.00018,2]
[330720418,1719735073990,-509.36868542,0.00018,2]
[330720419,1719735074000,-509.36868542,0.00018,2]
[330720420,1719735074010,-509.36868542,0.00018,2]
[330720421,1719735074019,-509.36868542,0.00018,2]
[330720422,1719735074029,-509.36868542,0.00018,2]
[330720423,1719735074039,-509.36868542,0.00018,2]
[330720424,1719735074049,-509.36868542,0.00018,2]
[330720425,1719735074059,-509.36868542,0.00018,2]
[330720426,1719735074068,-509.36868542,0.00018,2]
[330720427,1719735074078,-509.36868542,0.00018,2]
[330720428,1719735074089,-509.36868542,0.00018,2]
[330720429,1719735074099,-509.36868542,0.00018,2]
[330720430,1719735074108,-509.36868542,0.00018,2]
[330720431,1719735074118,-509.36868542,0.00018,2]
[330720432,1719735074128,-509.36868542,0.00018,2]
[330720433,1719735074138,-200.0,0.00018001,2]
[330720434,1719735074147,-21528.88741304,0.00018444,2]
[330720435,1719735074158,-1000.0,0.00018547,2]
[330720436,1719735074169,-800.0,0.00018547,2]
[330720437,1719735074180,-151.0,0.00018781,2]
[330720438,1719735074190,-38209.0,0.00018835,2]
[330720439,1719735074202,-160.2,0.000189,2]
[330720440,1719735074212,-319.10398717,0.00018984,2]
[330720441,1719735074222,-19785.74398718,0.00018999,2]
[330720442,1719735074231,-2000.0,0.00019,5]
[330720443,1719735074241,-1000.0,0.00019,3]
[330720444,1719735074252,-173.88463903,0.00019,2]
[330720445,1719735074261,-300.0,0.00019,2]
[330720446,1719735074272,-179.57,0.0001907,2]
[330720447,1719735074282,-716.30161992,0.00019098,2]
[330720448,1719735074293,-800.0,0.00019109,2]
[330720449,1719735074302,-21528.88741304,0.00019122,2]
[330720450,1719735074312,-166.87310959,0.00019178,2]
[330720451,1719735074321,-370.4011238,0.00019178,2]
[330720452,1719735074331,-406.49446964,0.00019178,2]
[330720453,1719735074341,-500.0,0.00019178,2]
[330720454,1719735074351,-500.0,0.00019178,2]
[330720455,1719735074360,-500.0,0.00019178,2]
[330720456,1719735074370,-500.0,0.00019178,2]
[330720457,1719735074380,-253.91407179,0.00019178,2]
[330720458,1719735074390,-500.0,0.00019178,2]
[330720459,1719735074399,-489.65249532,0.00019178,2]
[330720460,1719735074409,-500.0,0.00019178,2]
[330720461,1719735074419,-500.0,0.00019178,2]
[330720462,1719735074428,-500.0,0.00019178,2]
[330720463,1719735074438,-500.0,0.00019178,2]
[330720464,1719735074449,-500.0,0.00019178,2]
[330720465,1719735074459,-500.0,0.00019178,2]
[330720466,1719735074469,-500.0,0.00019178,2]
[330720467,1719735074479,-500.0,0.00019178,2]
[330720468,1719735074489,-500.0,0.00019178,2]
[330720469,1719735074499,-500.0,0.00019178,2]
[330720470,1719735074509,-500.0,0.00019178,2]
[330720471,1719735074519,-500.0,0.00019178,2]
[330720472,1719735074529,-323.10603076,0.00019178,2]
[330720473,1719735074539,-150.0,0.00019178,2]
[330720474,1719735074548,-250.0,0.00019178,2]
[330720475,1719735074557,-526.0,0.00019371,2]
[330720476,1719735074567,-204.58,0.00019382,2]
[330720477,1719735074579,-526.0,0.00019551,2]
[330720478,1719735074589,-9238.1893607,0.00019565,2]
[330720479,1719735074599,-200.0,0.00019638,2]
[330720480,1719735074609,-1000.0,0.00019643,2]
[330720481,1719735074619,-800.0,0.00019643,2]
[330720482,1719735074629,-150.0,0.00019683,2]
[330720483,1719735074638,-1285.0,0.00019694,2]
[330720484,1719735074648,-526.0,0.00019731,2]
[330720485,1719735074658,-404117.01136069,0.000198,2]
[330720486,1719735074668,-21528.88741304,0.000198,2]
[330720487,1719735074677,-303.2,0.000199,2]
[330720488,1719735074686,-1000.68,0.000199,2]
[330720489,1719735074696,-526.0,0.00019911,2]
[330720490,1719735074707,-148746.0,0.00019973,2]
[330720491,1719735074716,-904.8955146,0.00019986,2]
[330720492,1719735074725,-745.2080708,0.00019986,2]
[330720493,1719735074735,-585.5206271,0.00019986,2]
[330720494,1719735074745,-425.8331833,0.00019986,2]
[330720495,1719735074755,-14692.7520823,0.00019986,2]
[330720496,1719735074765,-12874.8847855,0.00019986,2]
[330720497,1719735074775,-11057.0174887,0.00019986,2]
[330720498,1719735074784,-9239.150192,0.00019986,2]
[330720499,1719735074794,-1719.2360994,0.00019986,2]
[330720500,1719735074804,-1506.5228471,0.00019986,2]
[330720501,1719735074814,-1293.8095948,0.00019986,2]
[330720502,1719735074824,-1081.0963425,0.00019986,2]
[330720503,1719735074834,-365.54017255,0.0001999,2]
[330720504,1719735074843,-188.14281244,0.0002,2]
[330720505,1719735074853,-6276.62953969,0.0002,2]
[330720506,1719735074868,-257.0,0.0002,2]
[330720507,1719735074878,-3402268.76,0.0002,2]
[330720508,1719735074887,-831.95601581,0.0002,2]
[330720509,1719735074897,-155.0,0.0002,2]
[330720510,1719735074906,-4891.8264385,0.0002,2]
[330720511,1719735074916,-979.0,0.0002,4]
[330720512,1719735074925,-867.43227348,0.0002,2]
[330720513,1719735074934,-2251.0,0.0002,2]
[330720514,1719735074947,-327.11942367,0.0002,2]
[330720515,1719735074957,-155.0,0.0002,2]
[330720516,1719735074966,-155.0,0.0002,2]
[330720517,1719735074975,-561.05979347,0.0002,2]
[330720518,1719735074985,-150.0,0.0002,2]
[330720519,1719735074994,-224.21214526,0.0002,2]
[330720520,1719735075004,-1000.68,0.0002,2]
[330720521,1719735075013,-76780.90226145,0.0002,2]
[330720522,1719735075023,-394.92,0.00020062,2]
[330720523,1719735075032,-526.0,0.00020091,2]
[330720524,1719735075042,-150.0,0.00020187,2]
[330720525,1719735075052,-2018.08606373,0.000202,2]
[330720526,1719735075062,-526.0,0.0002027,2]
[330720527,1719735075072,-319.10398717,0.00020281,2]
[330720528,1719735075082,-11481.0,0.000204,5]
[330720529,1719735075091,-526.0,0.0002045,2]
[330720530,1719735075101,-3605.89944442,0.000205,2]
[330720531,1719735075110,-2000.0,0.000205,2]
[330720532,1719735075120,-762.69475882,0.000205,2]
[330720533,1719735075130,-179.0,0.000205,2]
[330720534,1719735075139,-324.65968826,0.000205,2]
[330720535,1719735075149,-199.0,0.0002059,2]
[330720536,1719735075159,-526.0,0.0002063,2]
[330720537,1719735075168,-188.63446425,0.00020638,4]
[330720538,1719735075178,-150.0,0.00020638,4]
[330720539,1719735075188,-164.12582982,0.00020638,4]
[330720540,1719735075199,-150.0,0.00020638,4]
[330720541,1719735075209,-182.53411828,0.00020638,4]
[330720542,1719735075219,-150.0,0.00020638,4]
[330720543,1719735075229,-179.19721844,0.00020638,4]
[330720544,1719735075240,-150.0,0.00020638,4]
[330720545,1719735075250,-150.0,0.00020638,4]
[330720546,1719735075261,-150.0,0.00020638,4]
[330720547,1719735075467,-188.63446425,0.00020661,4]
[330720548,1719735075477,-150.0,0.00020681,4]
[330720549,1719735075487,-188.63446425,0.00020684,4]
[330720550,1719735075496,-150.0,0.00020692,2]
[330720551,1719735075506,-150.0,0.00020695,4]
[330720552,1719735075516,-188.63446425,0.00020707,4]
[330720553,1719735075525,-150.0,0.00020724,4]
[330720554,1719735075535,-188.63446425,0.00020731,4]
[330720555,1719735075545,-1000.0,0.00020739,2]
[330720556,1719735075555,-800.0,0.00020739,2]
[330720557,1719735075564,-150.0,0.00020753,4]
[330720558,1719735075574,-188.63446425,0.00020754,4]
[330720559,1719735075586,-150.0,0.00020768,4]
[330720560,1719735075596,-188.63446425,0.00020777,4]
[330720561,1719735075605,-266.1457395,0.00020786,2]
[330720562,1719735075615,-7421.2828952,0.00020786,2]
[330720563,1719735075625,-868.3830902,0.00020786,2]
[330720564,1719735075636,-2500.0,0.000208,2]
[330720565,1719735075645,-508899.544713,0.000208,3]
[330720566,1719735075655,-188.63446425,0.000208,4]
[330720567,1719735075665,-150.0,0.0002081,4]
[330720568,1719735075674,-526.0,0.0002081,2]
[330720569,1719735075684,-150.0,0.00020811,4]
[330720570,1719735075693,-188.63446425,0.00020823,4]
[330720571,1719735075704,-150.0,0.00020829,4]
[330720572,1719735075713,-188.63446425,0.00020846,4]
[330720573,1719735075723,-150.0,0.00020854,4]
[330720574,1719735075734,-150.0,0.00020867,4]
[330720575,1719735075744,-188.63446425,0.0002087,4]
[330720576,1719735075755,-188.63446425,0.00020893,4]
[330720577,1719735075767,-150.0,0.00020897,4]
[330720578,1719735075778,-400.0,0.000209,7]
[330720579,1719735075788,-156937.96076,0.000209,3]
[330720580,1719735075800,-1000.68,0.0002091,2]
[330720581,1719735075810,-188.63446425,0.00020916,4]
[330720582,1719735075822,-150.0,0.00020925,4]
[330720583,1719735075831,-150.0,0.00020925,4]
[330720584,1719735075840,-188.63446425,0.00020939,4]
[330720585,1719735075849,-150.0,0.00020941,4]
[330720586,1719735075858,-188.63446425,0.00020962,4]
[330720587,1719735075871,-150.0,0.00020982,4]
[330720588,1719735075880,-150.0,0.00020984,4]
[330720589,1719735075889,-188.63446425,0.00020985,4]
[330720590,1719735075898,-526.0,0.0002099,2]
[330720591,1719735075908,-250000.0,0.00021,2]
[330720592,1719735075917,-2000.0,0.00021,4]
[330720593,1719735075928,-1250.0,0.00021,2]
[330720594,1719735075937,-203.02303,0.00021,2]
[330720595,1719735075946,-188.63446425,0.00021009,4]
[330720596,1719735075957,-1000.68,0.0002101,2]
[330720597,1719735075967,-150.0,0.0002102,4]
[330720598,1719735075976,-150.0,0.00021027,4]
[330720599,1719735075985,-188.63446425,0.00021032,4]
[330720600,1719735075994,-150.0,0.00021039,4]
[330720601,1719735076003,-188.63446425,0.00021055,4]
[330720602,1719735076013,-5557.10508832,0.0002107,2]
[330720603,1719735076023,-150.0,0.00021071,4]
[330720604,1719735076032,-188.63446425,0.00021078,4]
[330720605,1719735076041,-150.0,0.00021097,4]
[330720606,1719735076051,-2000.0,0.000211,2]
[330720607,1719735076059,-100724.78540303,0.000211,2]
[330720608,1719735076068,-2000.0,0.000211,2]
[330720609,1719735076078,-673.0,0.000211,9]
[330720610,1719735076088,-188.63446425,0.00021101,4]
[330720611,1719735076097,-150.0,0.00021114,4]
[330720612,1719735076106,-188.63446425,0.00021124,4]
[330720613,1719735076115,-188.63446425,0.00021147,4]
[330720614,1719735076124,-150.0,0.00021154,4]
[330720615,1719735076133,-150.0,0.00021157,4]
[330720616,1719735076143,-526.0,0.0002117,2]
[330720617,1719735076152,-188.63446425,0.00021171,4]
[330720618,1719735076161,-188.63446425,0.00021194,4]
[330720619,1719735076171,-150.0,0.00021197,2]
[330720620,1719735076180,-2000.0,0.000212,4]
[330720621,1719735076189,-150.0,0.000212,4]
[330720622,1719735076200,-150.0,0.00021211,4]
[330720623,1719735076209,-150.0,0.00021211,4]
[330720624,1719735076220,-150.0,0.00021211,4]
[330720625,1719735076229,-188.63446425,0.00021217,4]
[330720626,1719735076238,-188.63446425,0.0002124,4]
[330720627,1719735076247,-150.0,0.00021244,4]
[330720628,1719735076257,-188.63446425,0.00021263,4]
[330720629,1719735076266,-150.0,0.00021269,4]
[330720630,1719735076276,-188.63446425,0.00021286,4]
[330720631,1719735076287,-150.0,0.00021287,4]
[330720632,1719735076298,-2004.75869071,0.000213,2]
[330720633,1719735076308,-188.63446425,0.0002131,4]
[330720634,1719735076319,-150.0,0.00021326,4]
[330720635,1719735076329,-150.0,0.0002133,4]
[330720636,1719735076340,-188.63446425,0.00021333,4]
[330720637,1719735076349,-526.0,0.0002135,2]
[330720638,1719735076359,-188.63446425,0.00021356,4]
[330720639,1719735076369,-150.0,0.00021373,4]
[330720640,1719735076379,-188.63446425,0.00021379,4]
[330720641,1719735076388,-150.0,0.00021383,4]
[330720642,1719735076398,-4903.92931,0.00021385,30]
[330720643,1719735076407,-1613.29862676,0.000214,2]
[330720644,1719735076416,-188.63446425,0.00021402,4]
[330720645,1719735076426,-150.0,0.00021402,4]
[330720646,1719735076436,-150.0,0.00021417,4]
[330720647,1719735076446,-188.63446425,0.00021425,4]
[330720648,1719735076457,-150.0,0.0002144,4]
[330720649,1719735076467,-188.63446425,0.00021449,4]
[330720650,1719735076477,-150.0,0.0002146,4]
[330720651,1719735076487,-188.63446425,0.00021472,4]
[330720652,1719735076496,-303.2,0.00021475,2]
[330720653,1719735076506,-188.63446425,0.00021495,4]
[330720654,1719735076515,-150.0,0.00021498,4]
[330720655,1719735076524,-150.0,0.00021498,4]
[330720656,1719735076534,-2000.0,0.000215,4]
[330720657,1719735076543,-150.0,0.00021503,4]
[330720658,1719735076552,-188.63446425,0.00021518,4]
[330720659,1719735076561,-526.0,0.0002153,2]
[330720660,1719735076571,-188.63446425,0.00021541,4]
[330720661,1719735076582,-150.0,0.00021546,4]
[330720662,1719735076591,-150.0,0.00021555,4]
[330720663,1719735076600,-188.63446425,0.00021564,4]
[330720664,1719735076609,-319.10398717,0.00021578,2]
[330720665,1719735076618,-188.63446425,0.00021588,4]
[330720666,1719735076627,-150.0,0.0002159,4]
[330720667,1719735076636,-150.0,0.00021593,4]
[330720668,1719735076647,-673.0,0.000216,9]
[330720669,1719735076656,-2000.0,0.000216,7]
[330720670,1719735076664,-188.63446425,0.00021611,4]
[330720671,1719735076673,-150.0,0.00021612,4]
[330720672,1719735076684,-150.0,0.00021633,4]
[330720673,1719735076693,-188.63446425,0.00021634,4]
[330720674,1719735076703,-814.59,0.00021644,2]
[330720675,1719735076711,-207.55,0.00021644,2]
[330720676,1719735076720,-185.41,0.00021644,2]
[330720677,1719735076729,-188.63446425,0.00021657,4]
[330720678,1719735076738,-150.0,0.0002167,4]
[330720679,1719735076747,-150.0,0.00021676,4]
[330720680,1719735076756,-188.63446425,0.0002168,4]
[330720681,1719735076766,-2000.0,0.000217,7]
[330720682,1719735076777,-150.0,0.00021702,2]
[330720683,1719735076787,-188.63446425,0.00021703,4]
[330720684,1719735076796,-526.0,0.0002171,2]
[330720685,1719735076806,-150.0,0.0002172,4]
[330720686,1719735076816,-188.63446425,0.00021727,4]
[330720687,1719735076827,-150.0,0.00021727,4]
[330720688,1719735076837,-188.63446425,0.0002175,4]
[330720689,1719735076848,-150.0,0.00021763,4]
[330720690,1719735076862,-188.63446425,0.00021773,4]
[330720691,1719735076872,-219.0,0.0002178,3]
[330720692,1719735076882,-150.0,0.00021784,4]
[330720693,1719735076891,-150.0,0.00021784,4]
[330720694,1719735076902,-150.0,0.00021784,4]
[330720695,1719735076911,-150.0,0.00021784,4]
[330720696,1719735076920,-188.63446425,0.00021796,4]
[330720697,1719735076929,-150.0,0.00021806,4]
[330720698,1719735076942,-800.0,0.00021808,2]
[330720699,1719735076952,-800.0,0.00021808,2]
[330720700,1719735076961,-800.0,0.00021808,2]
[330720701,1719735076971,-800.0,0.00021808,2]
[330720702,1719735076981,-188.63446425,0.00021819,4]
[330720703,1719735076991,-38209.0,0.00021835,2]
[330720704,1719735077000,-1000.0,0.00021835,2]
[330720705,1719735077010,-800.0,0.00021835,2]
[330720706,1719735077020,-150.0,0.00021842,4]
[330720707,1719735077031,-188.63446425,0.00021842,4]
[330720708,1719735077040,-150.0,0.00021849,4]
[330720709,1719735077050,-188.63446425,0.00021866,4]
[330720710,1719735077061,-188.63446425,0.00021889,4]
[330720711,1719735077071,-526.0,0.0002189,2]
[330720712,1719735077081,-150.0,0.00021893,4]
[330720713,1719735077092,-150.0,0.00021899,4]
[330720714,1719735077101,-188.63446425,0.00021912,4]
[330720715,1719735077111,-383.9,0.00021918,2]
[330720716,1719735077121,-270.3,0.00021918,2]
[330720717,1719735077132,-1492.59,0.00021918,2]
[330720718,1719735077144,-500.0,0.00021918,2]
[330720719,1719735077154,-500.0,0.00021918,2]
[330720720,1719735077164,-500.0,0.00021918,2]
[330720721,1719735077173,-500.0,0.00021918,2]
[330720722,1719735077182,-500.0,0.00021918,2]
[330720723,1719735077192,-500.0,0.00021918,2]
[330720724,1719735077203,-1000.68,0.0002192,2]
[330720725,1719735077212,-188.63446425,0.00021935,4]
[330720726,1719735077221,-150.0,0.00021936,4]
[330720727,1719735077232,-15769.94918358,0.0002195,2]
[330720728,1719735077241,-150.0,0.00021956,4]
[330720729,1719735077250,-188.63446425,0.00021958,4]
[330720730,1719735077259,-150.0,0.00021976,4]
[330720731,1719735077268,-2624.29675713,0.00021978,6]
[330720732,1719735077277,-150.0,0.00021979,4]
[330720733,1719735077286,-188.63446425,0.00021981,4]
[330720734,1719735077296,-31771.8696881,0.00022,4]
[330720735,1719735077305,-306.26287443,0.00022,2]
[330720736,1719735077316,-489.0,0.00022,4]
[330720737,1719735077325,-2000.0,0.00022,10]
[330720738,1719735077334,-766.90415135,0.00022,4]
[330720739,1719735077344,-188.63446425,0.00022004,4]
[330720740,1719735077354,-256.01012584,0.00022006,2]
[330720741,1719735077363,-170.91839145,0.00022006,2]
[330720742,1719735077372,-150.0,0.00022014,4]
[330720743,1719735077382,-161.18124067,0.00022014,2]
[330720744,1719735077391,-724.91080234,0.00022018,2]
[330720745,1719735077401,-1000.68,0.0002202,2]
[330720746,1719735077410,-315.82565176,0.00022022,2]
[330720747,1719735077419,-150.0,0.00022022,4]
[330720748,1719735077431,-188.63446425,0.00022028,4]
[330720749,1719735077441,-166.66666666,0.00022041,2]
[330720750,1719735077452,-188.63446425,0.00022051,4]
[330720751,1719735077462,-166.66666666,0.00022051,2]
[330720752,1719735077471,-526.22304742,0.00022053,2]
[330720753,1719735077480,-150.40483765,0.00022061,2]
[330720754,1719735077492,-1537.31634741,0.00022063,2]
[330720755,1719735077502,-206.22771519,0.00022065,2]
[330720756,1719735077511,-150.0,0.00022066,4]
[330720757,1719735077520,-526.0,0.0002207,2]
[330720758,1719735077529,-150.0,0.00022071,4]
[330720759,1719735077539,-150.0,0.00022071,4]
[330720760,1719735077548,-188.63446425,0.00022074,4]
[330720761,1719735077557,-191.18193024,0.00022082,2]
[330720762,1719735077567,-161.18124067,0.00022085,2]
[330720763,1719735077576,-315.82565176,0.00022097,2]
[330720764,1719735077587,-188.63446425,0.00022097,4]
[330720765,1719735077597,-2000.0,0.000221,2]
[330720766,1719735077607,-673.0,0.000221,10]
[330720767,1719735077617,-315.82565176,0.00022102,2]
[330720768,1719735077627,-1537.31634741,0.00022103,2]
[330720769,1719735077639,-150.0,0.00022109,4]
[330720770,1719735077648,-455.22668436,0.00022109,2]
[330720771,1719735077657,-233.77406429,0.00022119,2]
[330720772,1719735077666,-256.01012584,0.0002212,2]
[330720773,1719735077675,-188.63446425,0.0002212,4]
[330720774,1719735077684,-233.77406429,0.00022122,2]
[330720775,1719735077693,-1537.31634741,0.00022122,2]
[330720776,1719735077704,-150.0,0.00022128,4]
[330720777,1719735077714,-166.66666666,0.00022131,2]
[330720778,1719735077723,-315.82565176,0.00022134,2]
[330720779,1719735077732,-166.66666666,0.00022137,2]
[330720780,1719735077741,-188.63446425,0.00022143,4]
[330720781,1719735077750,-150.0,0.00022152,4]
[330720782,1719735077758,-188.63446425,0.00022167,4]
[330720783,1719735077767,-150.0,0.00022167,4]
[330720784,1719735077830,-150.0,0.00022186,4]
[330720785,1719735077839,-188.63446425,0.0002219,4]
[330720786,1719735077848,-150.0,0.00022195,4]
[330720787,1719735077857,-455.22668436,0.00022196,2]
[330720788,1719735077870,-155.77732901,0.00022201,2]
[330720789,1719735077879,-724.91080234,0.00022202,2]
[330720790,1719735077888,-251.90944828,0.00022203,2]
[330720791,1719735077898,-150.0,0.00022206,2]
[330720792,1719735077907,-256.01012584,0.00022208,2]
[330720793,1719735077916,-720.25344518,0.00022209,2]
[330720794,1719735077925,-188.63446425,0.00022213,4]
[330720795,1719735077934,-161.18124067,0.00022216,2]
[330720796,1719735077943,-1229.23504355,0.00022219,2]
[330720797,1719735077955,-233.77406429,0.00022222,2]
[330720798,1719735077964,-455.22668436,0.00022223,2]
[330720799,1719735077972,-1537.31634741,0.00022223,2]
[330720800,1719735077984,-1267.48744275,0.00022234,2]
[330720801,1719735077994,-188.63446425,0.00022236,4]
[330720802,1719735078003,-150.0,0.00022239,4]
[330720803,1719735078012,-720.25344518,0.00022243,2]
[330720804,1719735078021,-150.0,0.00022243,4]
[330720805,1719735078030,-2561.6542967,0.00022246,2]
[330720806,1719735078039,-526.0,0.0002225,2]
[330720807,1719735078048,-150.40483765,0.0002225,2]
[330720808,1719735078057,-161.18124067,0.00022251,2]
[330720809,1719735078066,-311.61391373,0.00022259,2]
[330720810,1719735078075,-526.22304742,0.00022259,2]
[330720811,1719735078084,-188.63446425,0.00022259,4]
[330720812,1719735078092,-154.81279975,0.0002226,2]
[330720813,1719735078101,-155.77732901,0.00022264,2]
[330720814,1719735078111,-2561.6542967,0.0002227,2]
[330720815,1719735078120,-150.0,0.00022275,2]
[330720816,1719735078129,-169.30618065,0.0002228,2]
[330720817,1719735078138,-150.0,0.00022282,4]
[330720818,1719735078146,-188.63446425,0.00022282,4]
[330720819,1719735078155,-455.22668436,0.0002229,2]
[330720820,1719735078165,-166.66666666,0.00022293,2]
[330720821,1719735078174,-166.66666666,0.00022296,2]
[330720822,1719735078183,-150.40483765,0.00022298,2]
[330720823,1719735078192,-150.0,0.000223,4]
[330720824,1719735078202,-154.35372058,0.00022301,2]
[330720825,1719735078214,-455.22668436,0.00022303,2]
[330720826,1719735078223,-188.63446425,0.00022306,4]
[330720827,1719735078232,-256.01012584,0.00022306,2]
[330720828,1719735078243,-166.66666666,0.00022311,2]
[330720829,1719735078252,-150.69214422,0.00022312,2]
[330720830,1719735078262,-251.90944828,0.00022317,2]
[330720831,1719735078271,-151.02404253,0.00022317,2]
[330720832,1719735078280,-1229.23504355,0.00022317,2]
[330720833,1719735078290,-206.22771519,0.0002232,2]
[330720834,1719735078298,-150.69214422,0.00022324,2]
[330720835,1719735078307,-150.0,0.00022325,4]
[330720836,1719735078316,-394.92,0.00022326,2]
[330720837,1719735078324,-188.63446425,0.00022329,4]
[330720838,1719735078334,-2561.6542967,0.00022336,2]
[330720839,1719735078343,-720.25344518,0.0002234,2]
[330720840,1719735078352,-206.22771519,0.00022345,2]
[330720841,1719735078361,-159.5745171,0.00022349,2]
[330720842,1719735078370,-188.63446425,0.00022352,4]
[330720843,1719735078379,-1229.23504355,0.00022352,2]
[330720844,1719735078389,-163.86370263,0.00022354,2]
[330720845,1719735078398,-166.66666666,0.00022357,2]
[330720846,1719735078407,-150.0,0.00022358,4]
[330720847,1719735078416,-150.0,0.00022358,4]
[330720848,1719735078426,-150.0,0.00022358,4]
[330720849,1719735078435,-311.61391373,0.00022358,2]
[330720850,1719735078444,-163.86370263,0.00022363,2]
[330720851,1719735078455,-163.86370263,0.00022364,2]
[330720852,1719735078464,-315.82565176,0.00022365,2]
[330720853,1719735078472,-724.91080234,0.00022365,2]
[330720854,1719735078481,-159.54771761,0.00022366,2]
[330720855,1719735078490,-1267.48744275,0.00022368,2]
[330720856,1719735078499,-150.0,0.00022369,4]
[330720857,1719735078508,-188.63446425,0.00022375,4]
[330720858,1719735078517,-455.22668436,0.00022376,2]
[330720859,1719735078526,-150.0,0.00022381,2]
[330720860,1719735078535,-188.63446425,0.00022398,4]
[330720861,1719735078544,-156.41998447,0.00022404,2]
[330720862,1719735078553,-455.22668436,0.00022405,2]
[330720863,1719735078562,-150.0,0.00022412,4]
[330720864,1719735078571,-150.0,0.00022415,4]
[330720865,1719735078579,-188.63446425,0.00022421,4]
[330720866,1719735078589,-526.0,0.00022429,2]
[330720867,1719735078598,-311.61391373,0.00022435,2]
[330720868,1719735078607,-251.90944828,0.00022441,2]
[330720869,1719735078617,-5621.67498746,0.00022442,2]
[330720870,1719735078626,-5000.0,0.00022442,2]
[330720871,1719735078636,-5000.0,0.00022442,2]
[330720872,1719735078645,-188.63446425,0.00022445,4]
[330720873,1719735078654,-166.66666666,0.00022448,2]
[330720874,1719735078663,-455.22668436,0.00022449,2]
[330720875,1719735078672,-166.66666666,0.00022451,2]
[330720876,1719735078682,-150.0,0.00022455,4]
[330720877,1719735078691,-2561.6542967,0.00022458,2]
[330720878,1719735078702,-315.82565176,0.00022458,2]
[330720879,1719735078711,-166.66666666,0.00022465,2]
[330720880,1719735078720,-188.63446425,0.00022468,4]
[330720881,1719735078730,-161.63695893,0.00022469,2]
[330720882,1719735078738,-315.82565176,0.0002247,2]
[330720883,1719735078747,-150.0,0.00022472,4]
[330720884,1719735078755,-166.66666666,0.0002248,2]
[330720885,1719735078765,-161.18124067,0.00022481,2]
[330720886,1719735078774,-206.22771519,0.0002249,2]
[330720887,1719735078783,-188.63446425,0.00022491,4]
[330720888,1719735078793,-150.0,0.00022498,4]
[330720889,1719735078802,-151.02404253,0.00022505,2]
[330720890,1719735078811,-526.22304742,0.00022511,2]
[330720891,1719735078820,-4526.07867112,0.00022514,2]
[330720892,1719735078830,-188.63446425,0.00022514,4]
[330720893,1719735078839,-1267.48744275,0.00022525,2]
[330720894,1719735078848,-251.90944828,0.00022526,2]
[330720895,1719735078858,-315.82565176,0.00022527,2]
[330720896,1719735078868,-150.0,0.0002253,4]
[330720897,1719735078878,-188.63446425,0.00022537,4]
[330720898,1719735078892,-1229.23504355,0.00022541,2]
[330720899,1719735078903,-150.0,0.00022542,4]
[330720900,1719735078912,-526.22304742,0.00022543,2]
[330720901,1719735078922,-150.0,0.00022549,4]
[330720902,1719735078932,-188.63446425,0.0002256,4]
[330720903,1719735078941,-2561.6542967,0.00022567,2]
[330720904,1719735078952,-152.98056909,0.0002257,2]
[330720905,1719735078962,-2561.6542967,0.00022572,2]
[330720906,1719735078970,-233.77406429,0.00022573,2]
[330720907,1719735078980,-151.02404253,0.00022575,2]
[330720908,1719735078990,-455.22668436,0.00022577,2]
[330720909,1719735078999,-155.77732901,0.00022578,2]
[330720910,1719735079009,-154.35372058,0.00022582,2]
[330720911,1719735079019,-166.66666666,0.00022583,2]
[330720912,1719735079028,-188.63446425,0.00022584,4]
[330720913,1719735079038,-150.0,0.00022585,4]
[330720914,1719735079050,-150.0,0.00022587,4]
[330720915,1719735079062,-455.22668436,0.00022588,2]
[330720916,1719735079071,-166.66666666,0.00022591,2]